[Event "1st FIDE Olympiad DIS 2023"]
[Site "Belgrade"]
[Date "2023.02.01"]
[Round "3.11"]
[White "Johansen, Torbjorn Reidar"]
[Black "Acs, Gabor"]
[Result "0-1"]
[ECO "C01"]
[WhiteElo "1764"]
[BlackElo "2101"]
[Annotator "TA"]
[PlyCount "64"]
[EventDate "2023.01.30"]
[EventType "team-tourn"]
[EventCountry "SRB"]
[SourceTitle "playchess.com"]
[Source "ChessBase"]
[SourceQuality "1"]
[WhiteTeam "Norway"]
[BlackTeam "Hungary"]
[WhiteTeamCountry "NOR"]
[BlackTeamCountry "HUN"]
[TimeControl "40/5400+30:1800+30"]

{[%evp 13,64,0,0,0,0,-37,-35,-50,-13,-54,-67,-56,-62,-52,-54,-95,-93,-126,-118,-151,-142,-283,-270,-247,-268,-621,-614,-580,-85,-81,-92,-437,-407,-452,-404,-1263,-1252,-2086,-1257,-1215,-1226,-29988,-1089,-997,-702,-741,-739,-2879,-2731,-29987,-29988,-29994,-29995]} 1. e4 {[%emt 0:00:16]} e6 {[%emt 0:00:06]} 2. d4 {[%emt 0:00:24]} d5 {[%emt 0:00:15]} 3. exd5 {[%emt 0:00:42]} exd5 {[%emt 0:00:13]} 4. Nf3 {[%emt 0:00:20]} Nc6 {[%emt 0:00:23]} 5. Bd3 {[%emt 0:01:19]} Bg4 {[%emt 0:00:18]} 6. c3 {[%emt 0:00:06]} Bd6 {[%emt 0:01:16]} 7. Be3 {[%emt 0:03:55]} Nge7 {[%emt 0:01:48][%cal Bg8e7,Be7f5,Bf5e3][%mdl 32]} 8. h3 {[%emt 0:04:58] C01: French: Exchange Variation.} Bf5 {[%emt 0:05:36]} 9. Qc2 {[%emt 0:05:54]} Qd7 {[%emt 0:00:53] [#]} 10. b4 $146 {[%emt 0:10:56] Black is slightly better.} ({Predecessor:} 10. Nbd2 f6 11. a3 O-O-O 12. b4 Bxd3 13. Qxd3 Qf5 14. Qe2 Rde8 15. a4 Ng6 16. g3 {0-1 Becerra Baigorri,J (1633)-Alonso Abad,E (2002) Madrid-ch Seniors 50 2020 (2)}) 10... O-O {[%emt 0:03:50]} 11. Bxf5 {[%emt 0:01:34]} Nxf5 {[%emt 0:04:37]} 12. O-O {[%emt 0:02:28]} Nxe3 {[%emt 0:00:28]} 13. fxe3 {[%emt 0:00:09]} Qe7 $36 {[%emt 0:03:43][%mdl 2048] Black has some pressure.} 14. Kf2 {[%emt 0:10:10]} Rae8 {[%emt 0:00:28][%csl Ge8][%cal Re7e3] Black is more active.} 15. Re1 {[%emt 0:01:07]} f5 {[%emt 0:09:06] aiming for ...g5.} ({And not} 15... Qf6 16. Nbd2 $15) 16. Nbd2 {[%emt 0:01:52]} g5 {[%emt 0:09:53]} 17. g4 {[%emt 0:05:30]} ({Of course not} 17. Qb3 g4 18. b5 (18. Qxd5+ $2 {too greedy.} Kh8 $19) 18... gxf3) (17. c4 $17 Nxb4 18. Qb3) 17... fxg4 $19 {[%emt 0:00:57][%mdl 64] [#] Discovered Attack} 18. hxg4 {[%emt 0:00:33]} Qe6 {[%emt 0:01:07]} 19. e4 $2 {[%emt 0:12:27]} (19. Ke2) 19... Qxg4 {[%emt 0:03:45] ...Bg3+ would be deadly.} 20. e5 {[%emt 0:01:44]} Be7 $2 {[%emt 0:21:22]} (20... Nxd4 $19 {[%cal Rf8f3] is more deadly.} 21. cxd4 Qxd4+ 22. Re3 Bxb4) 21. Rh1 $17 {[%emt 0:09:42][%csl Gh1][%cal Rc2h7]} Qf5 {[%emt 0:00:00] Dancing on a razor blade.} 22. Qb3 {[%emt 0:07:34][%mdl 8192] White does not recover from this.} (22. Qxf5 $17 Rxf5 23. Rag1) 22... g4 {[%emt 0:01:26][%mdl 64] Strongly threatening ...Qd3. Pin} 23. Rag1 {[%emt 0:01:44]} Kh8 {[%emt 0:01:31]} 24. Rh6 {[%emt 0:08:52]} (24. Qb1 $142 Qxb1 25. Rxb1) 24... Bg5 $19 {[%emt 0:05:46][%cal Og5d2]} 25. Rh5 {[%emt 0:02:05] [#]} Be3+ $1 {[%emt 0:07:38][%mdl 576] Discovered Attack} 26. Kxe3 {[%emt 0:04:31]} Qxh5 {[%emt 0:01:48]} 27. Ne1 {[%emt 0:00:13]} Qh3+ {[%emt 0:02:48]} (27... Nxe5 $142 28. dxe5 Qxe5+ 29. Ne4 Qxe4+ 30. Kd2 Qe3+ 31. Kc2 Qf2+ 32. Kd1 Qxg1 33. Qxd5 Qxe1+ 34. Kc2 Re2+ 35. Kb3 Rd2 36. Qxb7 Qb1+ {[%mdl 64] Deflection, Double Attack} 37. Kc4 Qxa2+ 38. Kb5 Rf5+ 39. Qd5 Qxd5+ 40. Ka6 Ra2#) 28. Ke2 {[%emt 0:00:12]} Ne7 {[%emt 0:02:43][%cal Bc6e7,Be7f5,Bf5d4][%mdl 32]} 29. Qb1 {[%emt 0:01:32]} Nf5 {[%emt 0:00:57] Threatens to win with ...Qe3+.} 30. Nf1 {[%emt 0:01:27] Prevents Qe3+} Qxc3 {[%emt 0:01:29]} 31. Rxg4 {[%emt 0:00:41]} Nxd4+ {[%emt 0:00:09]} 32. Kd1 {[%emt 0:00:14]} Rxf1 {[%emt 0:00:35] Weighted Error Value: White=1.56/Black=1.00} 0-1

[Event "1st FIDE Olympiad DIS 2023"]
[Site "Belgrade"]
[Date "2023.02.01"]
[Round "3.12"]
[White "Paal, Andras"]
[Black "Gardner, Phillip K"]
[Result "1/2-1/2"]
[ECO "B90"]
[WhiteElo "2019"]
[BlackElo "1814"]
[Annotator "TA"]
[PlyCount "53"]
[EventDate "2023.01.30"]
[EventType "team-tourn"]
[EventCountry "SRB"]
[SourceTitle "playchess.com"]
[Source "ChessBase"]
[SourceQuality "1"]
[WhiteTeam "Hungary"]
[BlackTeam "England"]
[WhiteTeamCountry "HUN"]
[BlackTeamCountry "ENG"]
[TimeControl "40/5400+30:1800+30"]

{[%evp 22,53,36,-2,74,74,70,79,95,0,0,-4,23,-9,-17,-37,0,-135,-141,-140,-136,-201,-191,-226,-212,-227,-208,-206,-172,-199,-134,-127,-93,-155]} 1. e4 {[%emt 0:00:12]} c5 {[%emt 0:00:02]} 2. Nf3 {[%emt 0:00:10]} d6 {[%emt 0:00:03]} 3. d4 {[%emt 0:00:37]} cxd4 {[%emt 0:00:05]} 4. Nxd4 {[%emt 0:00:08]} Nf6 {[%emt 0:00:03]} 5. Nc3 {[%emt 0:00:08]} a6 {[%emt 0:00:03]} 6. f3 {[%emt 0:01:06]} e5 {[%emt 0:00:08]} 7. Nb3 {[%emt 0:00:12]} Be6 {[%emt 0:00:24]} 8. Be3 {[%emt 0:00:13]} b5 {[%emt 0:00:33]} 9. Qd2 {[%emt 0:06:03]} Nbd7 {[%emt 0:00:18]} 10. g4 {[%emt 0:05:25][%cal Bg2g4,Bg4g5][%mdl 32]} Nb6 {[%emt 0:01:13]} 11. g5 {[%emt 0:07:12]} Nfd7 {[%emt 0:00:24]} 12. Nd5 {[%emt 0:05:02]} Nxd5 {[%emt 0:05:19] B90: Sicilian Najdorf: Unusual White 6th moves, 6 Be3 Ng4 and 6 Be3 e5.} (12... Rc8 $11) 13. exd5 $16 {[%emt 0:00:19]} Bf5 {[%emt 0:00:04]} 14. Na5 {[%emt 0:10:43]} Qc7 {[%emt 0:34:01] White is better.} 15. Nc6 {[%emt 0:01:58]} (15. Bd3 $16 g6 16. h4) 15... Nb8 $1 $11 {[%emt 0:02:10] [#]} 16. Nb4 $146 {[%emt 0:04:43]} ({Predecessor:} 16. Bd3 Bxd3 17. cxd3 Nxc6 18. Rc1 Nd4 19. Bxd4 Qb7 20. Be3 Qxd5 21. Ke2 Be7 22. h4 {½-½ Loskutova,V (2100)-Smietanska,W (1910) Wch Rapid (Women) 2021 (10)}) 16... Be7 {[%emt 0:11:16]} 17. Nd3 {[%emt 0:19:30]} O-O {[%emt 0:02:36]} 18. c3 {[%emt 0:04:54]} e4 {[%emt 0:05:33]} (18... Qb7 $5 {[%cal Rb7d5]}) 19. Nf2 {[%emt 0:07:03]} (19. fxe4 $11 Bxe4 20. Bg2) 19... exf3 $17 {[%emt 0:00:33]} 20. Bd3 {[%emt 0:00:39]} Bxd3 {[%emt 0:06:21]} 21. Qxd3 {[%emt 0:00:16]} (21. Nxd3 $17 Qc4 22. O-O) 21... Nd7 $19 {[%emt 0:01:29]} 22. Qd4 {[%emt 0:07:11]} Ne5 {[%emt 0:06:43]} 23. O-O-O {[%emt 0:03:49]} a5 {[%emt 0:04:56]} 24. Kb1 {[%emt 0:01:02]} Rfc8 {[%emt 0:01:44]} 25. Rc1 {[%emt 0:00:07]} Qc4 {[%emt 0:02:02]} (25... Qb7 $19 {White must now prevent ...Rc4.} 26. Qd2 Rc4) 26. h4 $17 {[%emt 0:00:30]} a4 {[%emt 0:03:31]} 27. Rhd1 {[%emt 0:05:01] Weighted Error Value: White=0.32/Black=0.24 (precise)} (27. Ne4 $142) 1/2-1/2

[Event "1st FIDE Olympiad DIS 2023"]
[Site "Belgrade"]
[Date "2023.02.01"]
[Round "3.13"]
[White "Rivas Cabrera, Edgar"]
[Black "Mikheev, Stanislav"]
[Result "0-1"]
[ECO "D47"]
[WhiteElo "1987"]
[BlackElo "2300"]
[Annotator "TA"]
[PlyCount "66"]
[EventDate "2023.01.30"]
[EventType "team-tourn"]
[EventCountry "SRB"]
[SourceTitle "playchess.com"]
[Source "ChessBase"]
[SourceQuality "1"]
[WhiteTeam "Venezuela"]
[BlackTeam "Serbia"]
[WhiteTeamCountry "VEN"]
[BlackTeamCountry "SRB"]
[TimeControl "40/5400+30:1800+30"]

{[%evp 15,66,14,8,0,0,-17,-13,-8,-10,-15,-1,-36,-33,-59,-32,-54,-47,-47,-53,-61,-60,-82,-81,-88,-84,-91,-99,-99,-97,-95,-95,-88,-92,-100,-84,-84,-85,-147,-147,-157,-157,-150,-130,-125,-123,-208,-196,-266,-221,-218,-208,-29997,-29998]} 1. c4 {[%emt 0:00:13]} c6 {[%emt 0:00:20]} 2. Nf3 {[%emt 0:06:16]} d5 {[%emt 0:01:26]} 3. e3 {[%emt 0:03:20]} Nf6 {[%emt 0:00:45]} 4. Nc3 {[%emt 0:01:09]} e6 {[%emt 0:02:16][%cal Be7e6,Be6e5][%mdl 32]} 5. d4 {[%emt 0:08:30]} Nbd7 {[%emt 0:01:52]} 6. Be2 {[%emt 0:06:39]} dxc4 {[%emt 0:00:59]} 7. Bxc4 {[%emt 0:01:11]} b5 {[%emt 0:00:06]} 8. Bd3 {[%emt 0:00:51]} Bd6 {[%emt 0:00:16]} 9. e4 {[%emt 0:10:35] [#] And now e5 would win. D47: Semi-Slav: Meran System.} e5 {[%emt 0:00:52]} 10. a3 {[%emt 0:08:19]} O-O {[%emt 0:03:30]} 11. O-O {[%emt 0:01:46] The position is equal.} a6 {[%emt 0:10:41]} 12. Bg5 {[%emt 0:11:32] [#]} Re8 $146 {[%emt 0:11:18]} ({Predecessor:} 12... h6 13. Bh4 exd4 14. Nxd4 Qc7 15. Kh1 Re8 16. Nf5 Be5 17. Rc1 Nc5 18. Nxb5 axb5 19. Rxc5 Bxf5 20. exf5 {1-0 Seres,L (2462)-Sedlak,N (2468) Budapest FS07 GM 2002 (11)}) 13. dxe5 {[%emt 0:08:37]} Nxe5 {[%emt 0:00:55]} 14. Nxe5 {[%emt 0:00:40]} Bxe5 {[%emt 0:14:41]} 15. Rc1 {[%emt 0:14:22]} h6 {[%emt 0:00:00]} 16. Bh4 {[%emt 0:04:17]} Bf4 {[%emt 0:00:00]} 17. Rb1 {[%emt 0:01:25]} Qd6 {[%emt 0:00:00]} 18. Bg3 {[%emt 0:04:43]} Bxg3 {[%emt 0:00:00]} 19. hxg3 {[%emt 0:00:05]} Bg4 {[%emt 0:00:00] Black is more active.} 20. Be2 {[%emt 0:01:37]} Qxd1 {[%emt 0:00:00]} 21. Bxd1 {[%emt 0:00:18]} Bxd1 {[%emt 0:00:00]} 22. Rfxd1 {[%emt 0:00:19]} Nxe4 {[%emt 0:00:00]} 23. Nxe4 {[%emt 0:00:03]} Rxe4 $17 {[%emt 0:00:00][%mdl 4096] Endgame KRR-KRR} 24. Rbc1 {[%emt 0:00:04]} Re6 {[%emt 0:00:00]} 25. Rd7 {[%emt 0:00:23]} Rae8 {[%emt 0:01:04]} 26. Kf1 {[%emt 0:04:28] Prevents Re1+} (26. Ra7 $142) 26... Re2 {[%emt 0:00:52]} 27. b4 {[%emt 0:00:09]} Ra2 {[%emt 0:00:35] aiming for ...Ree2.} 28. Rd3 {[%emt 0:00:40]} Ree2 {[%emt 0:00:49]} 29. Rf3 {[%emt 0:00:05]} Rec2 {[%emt 0:00:33][%cal Rc2c1]} 30. Re1 {[%emt 0:00:26]} (30. Rxc2 $17 {is a better defense.} Rxc2 31. Ke1) 30... f6 {[%emt 0:06:35]} 31. Kg1 {[%emt 0:00:15]} (31. g4 $142) 31... c5 {[%emt 0:00:46]} 32. bxc5 {[%emt 0:00:29]} Rxc5 {[%emt 0:00:07]} 33. Re6 $2 {[%emt 0:01:02] [#]} (33. Kh2 $19) 33... Ra1+ {[%emt 0:00:11] Weighted Error Value: White=0.46/Black=0.05 (flawless)} 0-1

[Event "1st FIDE Olympiad DIS 2023"]
[Site "Belgrade"]
[Date "2023.02.01"]
[Round "3.13"]
[White "Miheso, Clement Chomu"]
[Black "Banda Aaron"]
[Result "1/2-1/2"]
[ECO "B07"]
[WhiteElo "1615"]
[BlackElo "1901"]
[Annotator "TA"]
[PlyCount "172"]
[EventDate "2023.01.30"]
[EventType "team-tourn"]
[EventCountry "SRB"]
[SourceTitle "playchess.com"]
[Source "ChessBase"]
[SourceQuality "1"]
[WhiteTeam "Kenya"]
[BlackTeam "Zambia"]
[WhiteTeamCountry "KEN"]
[BlackTeamCountry "ZAM"]
[TimeControl "40/5400+30:1800+30"]

{[%evp 9,172,25,50,43,54,45,53,8,18,-39,-40,-89,0,-10,-6,-15,0,-8,-8,-1,0,-26,-29,-42,-25,-28,-5,-25,0,-27,0,0,0,0,0,0,0,0,-5,-34,-19,-45,-39,-43,-27,-54,-16,-14,0,0,0,0,0,-46,-19,-31,-33,-50,-4,-83,-45,-74,-54,-54,-54,-128,-136,-150,-156,-150,-150,-142,0,0,0,0,0,-7,0,0,0,0,0,0,0,0,0,0,0,0,4,0,0,0,0,-4,0,0,0,0,0,0,172,153,204,190,147,39,37,0,8,0,0,-10,-35,-21,-19,-51,-14,-102,-51,-206,-281,-233,-8,-8,-8,-8,-8,-51,-51,-51,-51,-51,-51,-51,-51,-51,-51,-51,-51,-51,-51,-191,-191,-191,-51,-191,-51,-191,-51,-51,-51,-51,-51,-51,-8,-8,-8,-8,-8,-8,-8,-8,0]} 1. e4 {[%emt 0:00:11]} d6 {[%emt 0:00:46]} 2. d4 {[%emt 0:00:25]} Nf6 {[%emt 0:00:55]} 3. Bd3 {[%emt 0:00:47]} g6 {[%emt 0:00:34]} 4. Nf3 {[%emt 0:00:43]} Bg7 {[%emt 0:01:09]} 5. h3 {[%emt 0:00:33]} c6 {[%emt 0:01:57][%cal Oe7e5]} 6. O-O {[%emt 0:00:43] B07: Pirc Defence: Miscellaneous Systems.} Qc7 {[%emt 0:00:36] [#]} 7. e5 $146 {[%emt 0:03:01]} ({Predecessor:} 7. c4 O-O 8. Nc3 e5 9. Be3 Nh5 10. Qd2 f5 11. exf5 gxf5 12. dxe5 dxe5 13. Bc2 Na6 14. Bg5 Be6 15. Bb3 Rf7 16. Rfd1 {1-0 Ruiz Gutierrez,J (1870)-Tirapo Larcuen,A (1942) Aragon-chT Preferente-B 2011 (1.4)}) 7... dxe5 {[%emt 0:02:35]} 8. Nxe5 {[%emt 0:01:20] White is slightly better.} O-O {[%emt 0:01:29]} 9. Bf4 {[%emt 0:05:11]} (9. Nc3 $11) 9... Qb6 $15 {[%emt 0:01:09]} 10. Bc4 {[%emt 0:02:26]} (10. Be3 $15) 10... Nd5 {[%emt 0:04:24]} ({Black should play} 10... Qxb2 $17 11. Nd2 Qxd4) 11. Bxd5 {[%emt 0:03:45]} cxd5 {[%emt 0:01:39]} 12. Nc3 {[%emt 0:01:27]} e6 {[%emt 0:02:06]} 13. b3 {[%emt 0:02:44]} Nc6 {[%emt 0:01:13]} 14. Nxc6 {[%emt 0:02:55]} Qxc6 {[%emt 0:00:50]} 15. Ne2 {[%emt 0:01:07]} b6 {[%emt 0:00:42]} 16. Re1 {[%emt 0:00:38]} Ba6 {[%emt 0:00:38]} 17. Rc1 {[%emt 0:00:24]} Rfd8 {[%emt 0:00:54]} 18. Qd2 {[%emt 0:00:57]} Rac8 {[%emt 0:00:56]} 19. a4 {[%emt 0:02:45]} Rd7 {[%emt 0:04:35]} 20. c3 {[%emt 0:03:12]} f6 {[%emt 0:02:32]} 21. Bh6 {[%emt 0:04:55]} Bh8 {[%emt 0:00:54]} 22. Nf4 {[%emt 0:03:16]} e5 {[%emt 0:04:21]} 23. dxe5 {[%emt 0:04:11]} fxe5 {[%emt 0:00:33]} 24. Ne2 {[%emt 0:00:25]} (24. Nd3 $5 {[%cal Rd3e5]} Qd6 25. Nb4 $15) 24... Bb7 {[%emt 0:01:26]} 25. f3 {[%emt 0:02:42]} (25. Nd4 {is more complex.} Qc5 26. Nb5 a6 27. Nd4) 25... Bf6 {[%emt 0:04:09]} 26. Be3 {[%emt 0:01:53]} Ba6 {[%emt 0:02:08]} 27. Bf2 {[%emt 0:03:45]} Be7 {[%emt 0:04:35]} 28. Ng3 {[%emt 0:03:14]} Ba3 {[%emt 0:02:51]} 29. Ra1 {[%emt 0:03:33]} Bd6 {[%emt 0:00:58]} (29... Qxc3 $2 30. Qxc3 Rxc3 31. Rxa3 $18) 30. Rad1 {[%emt 0:02:02]} Bb7 {[%emt 0:00:33]} (30... Qxc3 $2 31. Qxd5+ Kh8 32. Ne4 $18) 31. Rc1 {[%emt 0:01:47]} (31. c4 $11) 31... Qc7 {[%emt 0:00:49][%cal Oe5e4]} 32. Qg5 {[%emt 0:02:03]} Qd8 {[%emt 0:09:41]} 33. Qg4 {[%emt 0:01:52]} ({But not} 33. Rxe5 $2 Qxg5 34. Rxg5 Bf4 $19) 33... Rf7 {[%emt 0:02:10] Against Nf5} (33... Kf7 $15 {might be stronger.}) 34. Ne2 {[%emt 0:03:40]} ({Much weaker is} 34. Qe6 Rcc7 35. Ne2 Rce7 $17) (34. c4 $1 $11 {keeps the balance.}) 34... Rcc7 {[%emt 0:01:27]} 35. Bh4 {[%emt 0:02:12]} Qd7 {[%emt 0:03:05]} 36. Qxd7 {[%emt 0:00:35]} Rfxd7 {[%emt 0:00:28]} 37. b4 {[%emt 0:04:24] [#]} (37. Bg3 $15) 37... d4 $1 $17 {[%emt 0:04:44][%mdl 576] Deflection} 38. cxd4 {[%emt 0:04:59]} (38. Red1 d3) 38... Bxb4 {[%emt 0:01:01]} 39. Rxc7 {[%emt 0:01:03]} Rxc7 {[%emt 0:00:39]} 40. Rb1 {[%emt 0:00:14]} Be7 {[%emt 0:03:03]} (40... Rc4 $17 41. Be1 Bxe1 42. Rxe1 exd4) 41. Bxe7 $11 {[%emt 0:33:38]} Rxe7 {[%emt 0:30:47][%cal Bc7e7,Be7e5,Be5a5][%mdl 32]} 42. dxe5 {[%emt 0:02:08]} Rxe5 {[%emt 0:00:31][%mdl 4096] Endgame KRB-KRN} 43. Kf2 {[%emt 0:00:49]} Ra5 {[%emt 0:00:44]} 44. Rb4 {[%emt 0:02:10]} Bc6 {[%emt 0:01:01]} 45. Nc3 {[%emt 0:00:09]} Kf8 {[%emt 0:04:36]} 46. Rc4 {[%emt 0:00:36]} Bd7 {[%emt 0:00:47]} 47. Ke3 {[%emt 0:00:24]} Ke8 {[%emt 0:04:20]} 48. Rh4 {[%emt 0:01:21]} h5 {[%emt 0:01:49]} 49. Rd4 {[%emt 0:00:44]} Bc6 {[%emt 0:01:23]} 50. g4 {[%emt 0:02:55]} Ke7 {[%emt 0:01:20]} 51. h4 {[%emt 0:00:58]} Rc5 {[%emt 0:01:44]} 52. Ne4 {[%emt 0:02:55]} Rc1 {[%emt 0:02:06]} 53. Kf4 {[%emt 0:01:35]} hxg4 {[%emt 0:02:39]} 54. fxg4 {[%emt 0:00:25]} Re1 {[%emt 0:02:58]} 55. Nc3 {[%emt 0:02:35]} Rc1 $2 {[%emt 0:04:42]} (55... Kf6 $11) 56. Rc4 $1 $18 {[%emt 0:00:45]} Rf1+ {[%emt 0:02:36]} (56... Kd7 $16) 57. Kg5 {[%emt 0:00:34]} Rf6 {[%emt 0:02:13]} 58. Na2 {[%emt 0:01:00]} (58. Kh6 $16) 58... Rd6 $14 {[%emt 0:01:14]} 59. Nb4 {[%emt 0:00:08]} Bd7 {[%emt 0:00:30]} 60. Re4+ {[%emt 0:01:29]} Kf7 {[%emt 0:00:18]} 61. Nc2 {[%emt 0:00:16]} Rd5+ {[%emt 0:00:56]} 62. Kf4 {[%emt 0:00:02]} Ra5 {[%emt 0:00:20][%cal Od7c6]} 63. Rd4 {[%emt 0:00:52]} Rxa4 {[%emt 0:00:20]} 64. Nb4 {[%emt 0:00:10]} (64. h5 $11 {remains equal.}) 64... Be6 {[%emt 0:00:29]} (64... Be8 $17 {Hoping for ...a5.} 65. Ke5 a5) 65. Nc6 $2 {[%emt 0:00:11]} (65. h5 $1 $15) 65... Rxd4+ $19 {[%emt 0:00:26]} 66. Nxd4 {[%emt 0:00:02] KB-KN} Bd7 $2 {[%emt 0:00:17]} (66... Kf6 $1 $19 67. g5+ Kf7) 67. h5 $11 {[%emt 0:00:14]} gxh5 {[%emt 0:00:17]} 68. gxh5 {[%emt 0:00:01]} a5 {[%emt 0:00:16]} 69. Ke3 {[%emt 0:00:14]} Kf6 {[%emt 0:00:26]} 70. Kd3 {[%emt 0:00:15]} Kg5 {[%emt 0:00:37]} 71. Kc3 {[%emt 0:00:25]} Kxh5 {[%emt 0:00:12]} 72. Kc4 {[%emt 0:00:37]} Kg6 {[%emt 0:00:25] And now ...Kf6 would win.} 73. Kd5 {[%emt 0:00:58]} Kf6 {[%emt 0:01:06]} (73... a4 $5 74. Kc4 $8 Kh6 $11) 74. Kd6 {[%emt 0:00:23]} Be8 {[%emt 0:00:29]} 75. Nb3 {[%emt 0:00:33]} a4 {[%emt 0:00:42]} 76. Na1 {[%emt 0:00:21]} ({White must play} 76. Nc1 $15) 76... Kf5 $1 $19 {[%emt 0:00:36]} 77. Kd5 {[%emt 0:00:07]} Kf4 {[%emt 0:00:38]} ({Better is} 77... a3 $19 {Strongly threatening ...a2.} 78. Kc4 Bf7+ 79. Kc3 Ke5) 78. Kd4 {[%emt 0:00:02] [#]} (78. Nc2 $15) 78... Bf7 {[%emt 0:00:34]} (78... a3 $1 $19 79. Kc3 Bf7) 79. Kc3 {[%emt 0:01:49] [#]} (79. Nc2 $15) 79... b5 {[%emt 0:00:47]} ({Black should try} 79... a3 $1 $19 {Threatens to win with ...a2.} 80. Nc2 a2) 80. Kb4 {[%emt 0:00:08]} Bc4 {[%emt 0:00:30]} (80... Be8 $5) 81. Nc2 {[%emt 0:00:19]} Ke4 {[%emt 0:00:31]} 82. Na3 {[%emt 0:00:15][%csl LRb5,LRc4]} Kd3 {[%emt 0:00:17]} (82... Bd3 $5) 83. Nb1 {[%emt 0:00:37] The position is equal.} Kc2 {[%emt 0:00:27]} 84. Nc3 {[%emt 0:00:19]} Kb2 {[%emt 0:00:16] ( -> ...a3)} 85. Nxa4+ {[%emt 0:00:19]} bxa4 {[%emt 0:00:58]} 86. Kxa4 {[%emt 0:00:17]} Bb5+ {[%emt 0:00:13] A wild game.   Weighted Error Value: White=0.16 (very precise) /Black=0.20 (precise)} 1/2-1/2

[Event "1st FIDE Olympiad DIS 2023"]
[Site "Belgrade"]
[Date "2023.02.01"]
[Round "3.14"]
[White "Sargissyan, Sargis"]
[Black "Otero Munelo, Harlen Jose"]
[Result "1-0"]
[ECO "B01"]
[WhiteElo "2221"]
[BlackElo "2099"]
[Annotator "TA"]
[PlyCount "59"]
[EventDate "2023.01.30"]
[EventType "team-tourn"]
[EventCountry "SRB"]
[SourceTitle "playchess.com"]
[Source "ChessBase"]
[SourceQuality "1"]
[WhiteTeam "Armenia"]
[BlackTeam "Venezuela"]
[WhiteTeamCountry "ARM"]
[BlackTeamCountry "VEN"]
[TimeControl "40/5400+30:1800+30"]

{[%evp 20,59,113,104,121,119,232,215,239,215,372,414,329,412,374,310,348,285,429,408,550,529,536,522,644,646,693,661,814,812,771,791,1087,1068,1466,1059,1854,2129,3077,3261,29989,29990]} 1. e4 {[%emt 0:00:03]} d5 {[%emt 0:00:08]} 2. exd5 {[%emt 0:00:10]} Nf6 {[%emt 0:00:07]} 3. Nf3 {[%emt 0:00:40]} Nxd5 {[%emt 0:00:12]} 4. d4 {[%emt 0:00:11]} g6 {[%emt 0:00:09]} 5. c4 {[%emt 0:01:06]} Nb6 {[%emt 0:00:18]} 6. Nc3 {[%emt 0:01:37]} Bg7 {[%emt 0:00:06]} 7. Be3 {[%emt 0:01:33]} O-O {[%emt 0:00:49]} 8. h3 {[%emt 0:02:08]} Nc6 {[%emt 0:01:09]} 9. Be2 {[%emt 0:00:10]} e5 {[%emt 0:00:56]} 10. d5 {[%emt 0:00:40]} Ne7 {[%emt 0:01:18] [#]} 11. g4 $1 {[%emt 0:35:21]} f5 {[%emt 0:22:50] B01: Scandinavian Defence.} 12. Qb3 {[%emt 0:02:32] White is more active.} Kh8 {[%emt 0:26:45] [#]} (12... e4 $16 {was necessary.} 13. Ng5 h6) 13. O-O-O $1 $18 {[%emt 0:03:27] [#]} Bd7 $146 {[%emt 0:25:43] White is clearly better.} (13... fxg4 $2 14. hxg4 Nd7 15. Ng5 $18) ({Predecessor:} 13... Ng8) 14. c5 {[%emt 0:10:30]} Nbc8 $2 {[%emt 0:00:28]} (14... Nexd5 15. cxb6 (15. Nxd5 Ba4 $16) 15... Nxe3 16. fxe3 axb6 17. gxf5 Qe7 18. fxg6 Be6) 15. Qxb7 {[%emt 0:02:20]} Nd6 {[%emt 0:03:49]} 16. cxd6 {[%emt 0:00:16]} cxd6 {[%emt 0:00:07]} 17. Bxa7 {[%emt 0:11:47][%cal Be3a7,Ba7b6,Bb6c7][%mdl 32]} h6 {[%emt 0:01:30]} 18. Bb6 {[%emt 0:05:00]} Qe8 {[%emt 0:00:43]} (18... Qc8 $142 19. Qc7 e4) 19. Bc7 {[%emt 0:01:43]} e4 {[%emt 0:02:06]} 20. Nd4 {[%emt 0:00:35]} Be5 {[%emt 0:02:24]} 21. Kb1 {[%emt 0:05:31]} Ng8 {[%emt 0:05:57]} 22. gxf5 {[%emt 0:02:36]} gxf5 {[%emt 0:00:27]} 23. Qb6 {[%emt 0:05:18]} Nf6 {[%emt 0:02:11]} 24. Bxd6 {[%emt 0:00:47]} Bxd6 {[%emt 0:00:50]} 25. Qxd6 {[%emt 0:00:06]} Rb8 {[%emt 0:00:04]} 26. Ne6 {[%emt 0:01:02]} Rf7 {[%emt 0:00:22]} 27. Qe5 {[%emt 0:00:39]} Qc8 {[%emt 0:00:45]} 28. Rhg1 {[%emt 0:01:06]} Qb7 {[%emt 0:00:14]} 29. b3 {[%emt 0:00:13] Intending Rg6 and mate.} (29. Qxf5 $2 Qxb2#) 29... Qb4 {[%emt 0:00:31]} 30. Rg6 {[%emt 0:00:40] Black did not feel at home in the position after the opening.   Weighted Error Value: White=0.13 (very precise) /Black=0.77} 1-0